[Event "Live Chess"]
[Site "Chess.com"]
[Date "2023.05.20"]
[Round "-"]
[White "Trendle"]
[Black "LL220284LL"]
[Result "1/2-1/2"]
[WhiteElo "2674"]
[BlackElo "2386"]
[TimeControl "300"]
[EndTime "11:08:04 PDT"]
[Termination "Game drawn by repetition"]

1. e4 {[%clk 0:04:56.9]} 1... e5 {[%clk 0:04:58.7]} 2. Nf3 {[%clk 0:04:54.8]}
2... Nf6 {[%clk 0:04:58.4]} 3. d4 {[%clk 0:04:53.3]} 3... Nxe4 {[%clk
0:04:57.1]} 4. Bd3 {[%clk 0:04:51.3]} 4... d5 {[%clk 0:04:56.6]} 5. Nxe5 {[%clk
0:04:50.3]} 5... Nd7 {[%clk 0:04:56.2]} 6. Nxd7 {[%clk 0:04:49.1]} 6... Bxd7
{[%clk 0:04:56.1]} 7. Nc3 {[%clk 0:04:48.2]} 7... Nxc3 {[%clk 0:04:54]} 8. bxc3
{[%clk 0:04:48.1]} 8... Bd6 {[%clk 0:04:53.1]} 9. Qh5 {[%clk 0:04:46.8]} 9... g6
{[%clk 0:04:48.9]} 10. Qxd5 {[%clk 0:04:41.9]} 10... O-O {[%clk 0:04:46.2]} 11.
O-O {[%clk 0:04:36.7]} 11... Bc6 {[%clk 0:04:45.1]} 12. Qg5 {[%clk 0:04:32.3]}
12... Be7 {[%clk 0:04:32.3]} 13. Qg4 {[%clk 0:04:09.3]} 13... h5 {[%clk
0:04:24.7]} 14. Qh3 {[%clk 0:03:58.3]} 14... Re8 {[%clk 0:04:12.2]} 15. Bb2
{[%clk 0:03:36.9]} 15... Bd7 {[%clk 0:04:00.7]} 16. Qf3 {[%clk 0:03:33.2]} 16...
Bc6 {[%clk 0:03:58.3]} 17. Qf4 {[%clk 0:03:25.5]} 17... Bg5 {[%clk 0:03:52.3]}
18. Qg3 {[%clk 0:03:21.5]} 18... h4 {[%clk 0:03:45.7]} 19. Qg4 {[%clk
0:03:17.8]} 19... Bd7 {[%clk 0:03:36.9]} 20. Qd1 {[%clk 0:03:15.8]} 20... h3
{[%clk 0:03:35]} 21. g3 {[%clk 0:03:06.1]} 21... Bc6 {[%clk 0:03:20.3]} 22. c4
{[%clk 0:03:04.7]} 22... Bg2 {[%clk 0:03:16.2]} 23. Re1 {[%clk 0:03:03.4]} 23...
Qd6 {[%clk 0:03:13.4]} 24. Qg4 {[%clk 0:02:56.9]} 24... Bf6 {[%clk 0:03:07.6]}
25. Rad1 {[%clk 0:02:05.5]} 25... Rxe1+ {[%clk 0:02:52.6]} 26. Rxe1 {[%clk
0:02:04.3]} 26... Qb4 {[%clk 0:02:40.9]} 27. Rb1 {[%clk 0:01:54.8]} 27... Re8
{[%clk 0:02:35.7]} 28. Qd1 {[%clk 0:01:40]} 28... Qe7 {[%clk 0:02:12.9]} 29. Bf1
{[%clk 0:01:38.1]} 29... Qe4 {[%clk 0:02:06.3]} 30. Bd3 {[%clk 0:01:33]} 30...
Qe7 {[%clk 0:01:50.9]} 31. Bf1 {[%clk 0:01:30.1]} 31... Qe4 {[%clk 0:01:43.4]}
32. Bd3 {[%clk 0:01:29.4]} 32... Qe7 {[%clk 0:01:37.9]} 1/2-1/2

[Event "Live Chess"]
[Site "Chess.com"]
[Date "2023.05.20"]
[Round "-"]
[White "gmnorfolk"]
[Black "yarek"]
[Result "1-0"]
[WhiteElo "2145"]
[BlackElo "1890"]
[TimeControl "300"]
[EndTime "11:08:09 PDT"]
[Termination "gmnorfolk won by checkmate"]

1. d4 {[%clk 0:04:58.1]} 1... g6 {[%clk 0:04:59.5]} 2. e4 {[%clk 0:04:56.2]}
2... Bg7 {[%clk 0:04:59.4]} 3. Nc3 {[%clk 0:04:55.1]} 3... c6 {[%clk 0:04:58.5]}
4. f4 {[%clk 0:04:52.8]} 4... d5 {[%clk 0:04:57.2]} 5. e5 {[%clk 0:04:52.7]}
5... h5 {[%clk 0:04:49.5]} 6. Be3 {[%clk 0:04:49.1]} 6... Bf5 {[%clk 0:04:48.9]}
7. h3 {[%clk 0:04:47.4]} 7... Nh6 {[%clk 0:04:46.5]} 8. Nf3 {[%clk 0:04:45.6]}
8... e6 {[%clk 0:04:41.5]} 9. Be2 {[%clk 0:04:44]} 9... Nd7 {[%clk 0:04:37.8]}
10. O-O {[%clk 0:04:37.7]} 10... Qb6 {[%clk 0:04:28.4]} 11. b3 {[%clk
0:04:35.1]} 11... Rc8 {[%clk 0:04:16.9]} 12. Na4 {[%clk 0:04:29.7]} 12... Qc7
{[%clk 0:04:05.4]} 13. c4 {[%clk 0:04:26.3]} 13... b6 {[%clk 0:03:46.5]} 14. Rc1
{[%clk 0:04:23.4]} 14... O-O {[%clk 0:03:31.6]} 15. Ng5 {[%clk 0:04:11.4]} 15...
dxc4 {[%clk 0:03:14.4]} 16. bxc4 {[%clk 0:04:04.4]} 16... Rfd8 {[%clk
0:03:04.4]} 17. g4 {[%clk 0:04:00.5]} 17... hxg4 {[%clk 0:02:57.4]} 18. hxg4
{[%clk 0:03:59.3]} 18... b5 {[%clk 0:02:04]} 19. cxb5 {[%clk 0:03:55.3]} 19...
c5 {[%clk 0:01:48.8]} 20. gxf5 {[%clk 0:03:50.3]} 20... Nxf5 {[%clk 0:01:47.1]}
21. Bf2 {[%clk 0:03:46.5]} 21... Qa5 {[%clk 0:01:21.5]} 22. Qb3 {[%clk
0:03:19.7]} 22... cxd4 {[%clk 0:01:11.1]} 23. Rxc8 {[%clk 0:03:17.9]} 23... Rxc8
{[%clk 0:01:09.6]} 24. Nxe6 {[%clk 0:03:09.9]} 24... Nxe5 {[%clk 0:00:42.9]} 25.
fxe5 {[%clk 0:03:03.6]} 25... Bxe5 {[%clk 0:00:41.5]} 26. Ng5 {[%clk 0:02:52.5]}
26... Rc7 {[%clk 0:00:30.9]} 27. Bc4 {[%clk 0:02:49.7]} 27... Nd6 {[%clk
0:00:24.7]} 28. Bxf7+ {[%clk 0:02:45.6]} 28... Nxf7 {[%clk 0:00:23]} 29. Nxf7
{[%clk 0:02:44.6]} 29... Rxf7 {[%clk 0:00:20.9]} 30. Bg3 {[%clk 0:02:42.2]}
30... Bxg3 {[%clk 0:00:10.3]} 31. Qxf7+ {[%clk 0:02:39.3]} 31... Kh8 {[%clk
0:00:09.4]} 32. Qf8+ {[%clk 0:02:38.4]} 32... Kh7 {[%clk 0:00:08.3]} 33. Rf7#
{[%clk 0:02:37.4]} 1-0

[Event "Live Chess"]
[Site "Chess.com"]
[Date "2023.05.20"]
[Round "-"]
[White "JanMur7"]
[Black "Leonid_Starozhilov"]
[Result "0-1"]
[WhiteElo "1972"]
[BlackElo "2644"]
[TimeControl "300"]
[EndTime "11:08:19 PDT"]
[Termination "Leonid_Starozhilov won by resignation"]

1. e4 {[%clk 0:04:56.9]} 1... c5 {[%clk 0:04:58.2]} 2. Nf3 {[%clk 0:04:55.4]}
2... d6 {[%clk 0:04:57.4]} 3. c3 {[%clk 0:04:54.3]} 3... Nf6 {[%clk 0:04:56.1]}
4. Be2 {[%clk 0:04:50.8]} 4... Nc6 {[%clk 0:04:54.3]} 5. d4 {[%clk 0:04:49.8]}
5... cxd4 {[%clk 0:04:52.3]} 6. cxd4 {[%clk 0:04:48.9]} 6... g6 {[%clk
0:04:51.9]} 7. Nc3 {[%clk 0:04:47.7]} 7... Bg7 {[%clk 0:04:50.8]} 8. O-O {[%clk
0:04:47]} 8... O-O {[%clk 0:04:49.9]} 9. d5 {[%clk 0:04:45.8]} 9... Nb8 {[%clk
0:04:47.5]} 10. Be3 {[%clk 0:04:44.6]} 10... Bg4 {[%clk 0:04:46.5]} 11. h3
{[%clk 0:04:43.4]} 11... Bxf3 {[%clk 0:04:45.5]} 12. Bxf3 {[%clk 0:04:43.3]}
12... Nbd7 {[%clk 0:04:45.2]} 13. Bd4 {[%clk 0:04:42.2]} 13... a6 {[%clk
0:04:44.4]} 14. a4 {[%clk 0:04:41.1]} 14... Rc8 {[%clk 0:04:43.2]} 15. a5 {[%clk
0:04:40.2]} 15... Ne5 {[%clk 0:04:38.9]} 16. Bxe5 {[%clk 0:04:36.4]} 16... dxe5
{[%clk 0:04:37.7]} 17. Qb3 {[%clk 0:04:33.8]} 17... Qd7 {[%clk 0:04:30.8]} 18.
Na4 {[%clk 0:04:22.2]} 18... Qc7 {[%clk 0:04:22.1]} 19. Nb6 {[%clk 0:04:18.6]}
19... Rcd8 {[%clk 0:04:20.7]} 20. Rac1 {[%clk 0:04:16.2]} 20... Qb8 {[%clk
0:04:19.2]} 21. Rc2 {[%clk 0:04:12.8]} 21... h5 {[%clk 0:04:13.9]} 22. Rfc1
{[%clk 0:04:10.1]} 22... Nd7 {[%clk 0:04:12.8]} 23. Rc7 {[%clk 0:04:03.1]} 23...
Nxb6 {[%clk 0:04:07.9]} 24. Qxb6 {[%clk 0:04:03]} 24... Rc8 {[%clk 0:04:01.1]}
25. Kh2 {[%clk 0:03:45]} 25... Bh6 {[%clk 0:03:50.6]} 26. R1c2 {[%clk
0:03:30.8]} 26... h4 {[%clk 0:03:42.4]} 27. Rxb7 {[%clk 0:03:15.6]} 27... Bf4+
{[%clk 0:03:35]} 28. g3 {[%clk 0:03:13.1]} 28... hxg3+ {[%clk 0:03:33.8]} 29.
fxg3 {[%clk 0:03:12.1]} 29... Rxc2+ {[%clk 0:03:32.1]} 30. Bg2 {[%clk
0:03:11.4]} 30... Qd6 {[%clk 0:03:20.7]} 31. Qxd6 {[%clk 0:03:02.2]} 31... Bxg3+
{[%clk 0:03:16.6]} 0-1

[Event "Live Chess"]
[Site "Chess.com"]
[Date "2023.05.20"]
[Round "-"]
[White "MarkLim1"]
[Black "Tilbs_12"]
[Result "1-0"]
[WhiteElo "1622"]
[BlackElo "1568"]
[TimeControl "300"]
[EndTime "11:08:26 PDT"]
[Termination "MarkLim1 won by resignation"]

1. d4 {[%clk 0:04:59.2]} 1... d5 {[%clk 0:04:58.3]} 2. Nf3 {[%clk 0:04:58.6]}
2... Nf6 {[%clk 0:04:56.4]} 3. c4 {[%clk 0:04:57.9]} 3... c6 {[%clk 0:04:55.2]}
4. cxd5 {[%clk 0:04:57]} 4... cxd5 {[%clk 0:04:54.3]} 5. Nc3 {[%clk 0:04:56.1]}
5... Nc6 {[%clk 0:04:53.8]} 6. Bf4 {[%clk 0:04:55.6]} 6... a6 {[%clk 0:04:48.7]}
7. Rc1 {[%clk 0:04:53.8]} 7... Bf5 {[%clk 0:04:46.1]} 8. Ne5 {[%clk 0:04:51.2]}
8... e6 {[%clk 0:04:32.9]} 9. Nxc6 {[%clk 0:04:48.2]} 9... bxc6 {[%clk
0:04:31.6]} 10. e3 {[%clk 0:04:47.6]} 10... c5 {[%clk 0:04:27.1]} 11. Qa4+
{[%clk 0:04:36.4]} 11... Qd7 {[%clk 0:04:21.6]} 12. Bb5 {[%clk 0:04:31.3]} 12...
axb5 {[%clk 0:04:18.8]} 13. Qxa8+ {[%clk 0:04:28.6]} 13... Ke7 {[%clk
0:04:17.8]} 14. O-O {[%clk 0:04:16.7]} 14... g6 {[%clk 0:04:09.2]} 15. dxc5
{[%clk 0:04:11.9]} 15... Bg7 {[%clk 0:04:07.2]} 16. Qa3 {[%clk 0:04:10.2]} 16...
Qc6 {[%clk 0:04:02.5]} 17. Qa7+ {[%clk 0:04:02.4]} 17... Qd7 {[%clk 0:03:56.9]}
18. Qxd7+ {[%clk 0:04:00.1]} 18... Kxd7 {[%clk 0:03:55.7]} 19. Nxb5 {[%clk
0:03:59.1]} 19... Kc6 {[%clk 0:03:52.9]} 20. Nd4+ {[%clk 0:03:56.8]} 20... Kd7
{[%clk 0:03:48.6]} 21. Nxf5 {[%clk 0:03:56.7]} 21... gxf5 {[%clk 0:03:46.8]} 22.
b4 {[%clk 0:03:52.2]} 1-0

[Event "Live Chess"]
[Site "Chess.com"]
[Date "2023.05.20"]
[Round "-"]
[White "alanmike75"]
[Black "Mikhail_Golubev"]
[Result "0-1"]
[WhiteElo "1506"]
[BlackElo "2526"]
[TimeControl "300"]
[EndTime "11:08:27 PDT"]
[Termination "Mikhail_Golubev won by resignation"]

1. e4 {[%clk 0:04:59.1]} 1... Na6 {[%clk 0:04:58.5]} 2. Bxa6 {[%clk 0:04:55]}
2... bxa6 {[%clk 0:04:57.3]} 3. d3 {[%clk 0:04:53.9]} 3... e5 {[%clk 0:04:51.8]}
4. Ne2 {[%clk 0:04:52.5]} 4... Nf6 {[%clk 0:04:46]} 5. O-O {[%clk 0:04:50.8]}
5... Bc5 {[%clk 0:04:38.8]} 6. Ng3 {[%clk 0:04:47.7]} 6... d5 {[%clk 0:04:32.8]}
7. Nc3 {[%clk 0:04:37.6]} 7... dxe4 {[%clk 0:04:11.6]} 8. Ncxe4 {[%clk
0:04:34.2]} 8... Nxe4 {[%clk 0:04:08.9]} 9. Nxe4 {[%clk 0:04:32.9]} 9... Be7
{[%clk 0:04:07.8]} 10. Qe2 {[%clk 0:04:21.8]} 10... O-O {[%clk 0:04:06.3]} 11.
Be3 {[%clk 0:04:17.8]} 11... Bb7 {[%clk 0:04:03.2]} 12. Bc5 {[%clk 0:03:46.7]}
12... Bxc5 {[%clk 0:03:56.8]} 13. Nxc5 {[%clk 0:03:44.7]} 13... Qd5 {[%clk
0:03:56]} 14. Nxb7 {[%clk 0:03:42.9]} 14... Qxb7 {[%clk 0:03:53.1]} 15. b3
{[%clk 0:03:40.2]} 15... Rfe8 {[%clk 0:03:50.5]} 16. Qe4 {[%clk 0:03:37.7]}
16... Qb6 {[%clk 0:03:48.1]} 17. Rae1 {[%clk 0:03:30.2]} 17... Rad8 {[%clk
0:03:46.1]} 18. a4 {[%clk 0:03:20.7]} 18... Rd4 {[%clk 0:03:43.8]} 19. Qe3
{[%clk 0:03:19.5]} 19... Re6 {[%clk 0:03:31.3]} 20. c3 {[%clk 0:03:10.6]} 20...
Rd8 {[%clk 0:03:25.7]} 21. Qxb6 {[%clk 0:03:04.3]} 21... axb6 {[%clk 0:03:25.6]}
22. Rd1 {[%clk 0:02:57.2]} 22... Red6 {[%clk 0:03:24.2]} 23. f4 {[%clk
0:02:33.7]} 23... Rxd3 {[%clk 0:03:14.7]} 24. Rxd3 {[%clk 0:02:31]} 24... Rxd3
{[%clk 0:03:14.4]} 25. fxe5 {[%clk 0:02:29.9]} 25... Rxc3 {[%clk 0:03:13.5]} 26.
Rd1 {[%clk 0:02:28]} 26... Kf8 {[%clk 0:03:08.7]} 27. b4 {[%clk 0:02:14.2]}
27... Ke7 {[%clk 0:03:05.8]} 28. Rd4 {[%clk 0:02:03.3]} 28... Ke6 {[%clk
0:03:01.7]} 0-1

[Event "Live Chess"]
[Site "Chess.com"]
[Date "2023.05.20"]
[Round "-"]
[White "JoshMcK"]
[Black "Singapourfeuj"]
[Result "0-1"]
[WhiteElo "1535"]
[BlackElo "2238"]
[TimeControl "300"]
[EndTime "11:08:31 PDT"]
[Termination "Singapourfeuj won by resignation"]

1. e4 {[%clk 0:04:59.3]} 1... e6 {[%clk 0:04:58.8]} 2. d4 {[%clk 0:04:57.8]}
2... d5 {[%clk 0:04:58]} 3. Nc3 {[%clk 0:04:53.9]} 3... Nf6 {[%clk 0:04:56.5]}
4. e5 {[%clk 0:04:52.9]} 4... Nfd7 {[%clk 0:04:55.1]} 5. f4 {[%clk 0:04:52.5]}
5... c5 {[%clk 0:04:54.1]} 6. Nf3 {[%clk 0:04:51.7]} 6... Nc6 {[%clk 0:04:52.6]}
7. Be3 {[%clk 0:04:50.4]} 7... a6 {[%clk 0:04:51.6]} 8. a3 {[%clk 0:04:47]} 8...
b5 {[%clk 0:04:50.7]} 9. Qd2 {[%clk 0:04:34.1]} 9... Qb6 {[%clk 0:04:48]} 10.
dxc5 {[%clk 0:04:30.2]} 10... Bxc5 {[%clk 0:04:46.6]} 11. O-O-O {[%clk
0:04:26.8]} 11... Bxe3 {[%clk 0:04:44.7]} 0-1

[Event "Live Chess"]
[Site "Chess.com"]
[Date "2023.05.20"]
[Round "-"]
[White "Jeffaroow"]
[Black "CeladonFish"]
[Result "0-1"]
[WhiteElo "460"]
[BlackElo "1040"]
[TimeControl "300"]
[EndTime "11:08:35 PDT"]
[Termination "CeladonFish won by resignation"]

1. e4 {[%clk 0:04:59]} 1... d6 {[%clk 0:04:59]} 2. Nf3 {[%clk 0:04:57.7]} 2...
Nf6 {[%clk 0:04:52.6]} 3. Nc3 {[%clk 0:04:56.1]} 3... g6 {[%clk 0:04:51.7]} 4.
d4 {[%clk 0:04:54.2]} 4... Bg7 {[%clk 0:04:50.9]} 5. Be3 {[%clk 0:04:52.7]} 5...
O-O {[%clk 0:04:49.2]} 6. Bd3 {[%clk 0:04:50.8]} 6... c6 {[%clk 0:04:45.5]} 7.
O-O {[%clk 0:04:49.3]} 7... b5 {[%clk 0:04:44.3]} 8. b4 {[%clk 0:04:45.5]} 8...
a5 {[%clk 0:04:37.1]} 9. a3 {[%clk 0:04:41.5]} 9... Ng4 {[%clk 0:04:27.3]} 10.
Bf4 {[%clk 0:04:29.8]} 10... e5 {[%clk 0:04:14.4]} 11. dxe5 {[%clk 0:04:28.4]}
11... dxe5 {[%clk 0:04:13.2]} 12. Bg5 {[%clk 0:04:21.6]} 12... f6 {[%clk
0:04:09.8]} 13. Bd2 {[%clk 0:04:11.3]} 13... f5 {[%clk 0:04:00.5]} 14. exf5
{[%clk 0:04:05.1]} 14... Bxf5 {[%clk 0:03:58.8]} 15. Bxf5 {[%clk 0:04:00.9]}
15... Rxf5 {[%clk 0:03:56.9]} 16. Qe2 {[%clk 0:03:42]} 16... Na6 {[%clk
0:03:41.9]} 17. Ne4 {[%clk 0:03:19.1]} 17... Nf6 {[%clk 0:03:35]} 18. Nxf6+
{[%clk 0:03:15.8]} 18... Bxf6 {[%clk 0:03:34]} 19. Ra2 {[%clk 0:03:06.9]} 19...
axb4 {[%clk 0:03:29.2]} 20. axb4 {[%clk 0:03:04.2]} 20... Nc7 {[%clk 0:03:17.3]}
21. Rxa8 {[%clk 0:03:00.2]} 21... Qxa8 {[%clk 0:03:16.3]} 22. h4 {[%clk
0:02:48.4]} 22... Nd5 {[%clk 0:03:07.3]} 23. Bg5 {[%clk 0:02:43.2]} 23... Bxg5
{[%clk 0:03:04.7]} 24. Nxg5 {[%clk 0:02:41.5]} 24... Qe8 {[%clk 0:02:54.8]} 25.
f4 {[%clk 0:02:29.2]} 25... e4 {[%clk 0:02:53.3]} 26. Qxe4 {[%clk 0:02:24.7]}
26... Qxe4 {[%clk 0:02:51.7]} 27. Nxe4 {[%clk 0:02:22.7]} 27... Nxf4 {[%clk
0:02:47.2]} 28. Nd6 {[%clk 0:02:14.2]} 28... Ne2+ {[%clk 0:02:45.5]} 29. Kh2
{[%clk 0:02:09.6]} 29... Rxf1 {[%clk 0:02:44.4]} 0-1

[Event "Live Chess"]
[Site "Chess.com"]
[Date "2023.05.20"]
[Round "-"]
[White "Tushinskiy"]
[Black "Enhard"]
[Result "1-0"]
[WhiteElo "2108"]
[BlackElo "1451"]
[TimeControl "300"]
[EndTime "11:08:37 PDT"]
[Termination "Tushinskiy won by resignation"]

1. d4 {[%clk 0:04:57.9]} 1... c6 {[%clk 0:04:58.6]} 2. c3 {[%clk 0:04:57.8]}
2... d5 {[%clk 0:04:57.5]} 3. Nf3 {[%clk 0:04:57.7]} 3... Bf5 {[%clk 0:04:56.8]}
4. Bf4 {[%clk 0:04:57.2]} 4... Nf6 {[%clk 0:04:54.9]} 5. Nbd2 {[%clk 0:04:56.4]}
5... Nbd7 {[%clk 0:04:54.1]} 6. Bg3 {[%clk 0:04:56.3]} 6... e6 {[%clk
0:04:52.8]} 7. e3 {[%clk 0:04:55.7]} 7... h6 {[%clk 0:04:49.9]} 8. Be2 {[%clk
0:04:54.2]} 8... Be7 {[%clk 0:04:48.8]} 9. O-O {[%clk 0:04:53.2]} 9... O-O
{[%clk 0:04:47.8]} 10. b4 {[%clk 0:04:52.5]} 10... a6 {[%clk 0:04:45.9]} 11. a4
{[%clk 0:04:51.5]} 11... b5 {[%clk 0:04:44.2]} 12. Qb3 {[%clk 0:04:49.9]} 12...
Ne4 {[%clk 0:04:38.9]} 13. Nxe4 {[%clk 0:04:48.6]} 13... Bxe4 {[%clk 0:04:37.9]}
14. Ne5 {[%clk 0:04:47.8]} 14... Nxe5 {[%clk 0:04:34]} 15. Bxe5 {[%clk
0:04:47.7]} 15... Bf6 {[%clk 0:04:33.5]} 16. Bg3 {[%clk 0:04:44.4]} 16... Qe7
{[%clk 0:04:24]} 17. Ra2 {[%clk 0:04:25.7]} 17... Ra7 {[%clk 0:04:19.4]} 18.
axb5 {[%clk 0:04:16.3]} 18... axb5 {[%clk 0:04:17.3]} 19. Rfa1 {[%clk
0:04:15.5]} 19... Rfa8 {[%clk 0:04:15.7]} 20. Ra5 {[%clk 0:04:12.1]} 20... Qb7
{[%clk 0:04:12.4]} 21. h3 {[%clk 0:04:08.1]} 21... Bd8 {[%clk 0:04:11.1]} 22.
R5a3 {[%clk 0:04:00.5]} 22... Ra4 {[%clk 0:03:54.5]} 23. Rxa4 {[%clk 0:03:58.4]}
23... bxa4 {[%clk 0:03:50.4]} 24. Rxa4 {[%clk 0:03:58.3]} 24... Rxa4 {[%clk
0:03:48.2]} 25. Qxa4 {[%clk 0:03:58.2]} 25... Bc7 {[%clk 0:03:40.4]} 26. Bxc7
{[%clk 0:02:48.8]} 26... Qxc7 {[%clk 0:03:38.6]} 27. Qa6 {[%clk 0:02:47.9]}
27... Kh7 {[%clk 0:03:36.5]} 28. Bd3 {[%clk 0:02:45.5]} 28... Bxd3 {[%clk
0:03:34.3]} 29. Qxd3+ {[%clk 0:02:45.4]} 29... g6 {[%clk 0:03:31.4]} 30. Qa6
{[%clk 0:02:44.1]} 30... Kg7 {[%clk 0:03:29.2]} 31. g3 {[%clk 0:02:42.8]} 31...
h5 {[%clk 0:03:27.8]} 32. h4 {[%clk 0:02:38.7]} 32... Kf6 {[%clk 0:03:22.5]} 33.
c4 {[%clk 0:02:36.3]} 33... dxc4 {[%clk 0:03:19.1]} 34. Qxc4 {[%clk 0:02:36.2]}
34... Qb6 {[%clk 0:03:15]} 35. Qc5 {[%clk 0:02:34.7]} 35... Qc7 {[%clk
0:03:10.7]} 36. b5 {[%clk 0:02:33.3]} 36... Qb8 {[%clk 0:03:00.5]} 37. bxc6
{[%clk 0:02:22.7]} 37... Qb1+ {[%clk 0:02:59]} 38. Kh2 {[%clk 0:02:21.7]} 38...
Qf1 {[%clk 0:02:55.2]} 39. Qe5+ {[%clk 0:02:17.2]} 39... Ke7 {[%clk 0:02:52.1]}
40. Qf4 {[%clk 0:02:15.3]} 40... Qc4 {[%clk 0:02:43.5]} 41. Qf3 {[%clk
0:02:12.5]} 41... Kd6 {[%clk 0:02:40.5]} 42. Qxf7 {[%clk 0:02:09.3]} 42... Qxc6
{[%clk 0:02:36.5]} 43. Qxg6 {[%clk 0:02:05.7]} 43... Qf3 {[%clk 0:02:35.3]} 44.
Kg1 {[%clk 0:02:04.3]} 44... Qd1+ {[%clk 0:02:33.9]} 45. Kg2 {[%clk 0:02:03]}
45... Qa1 {[%clk 0:02:21]} 46. Qe4 {[%clk 0:01:59.4]} 46... Qb2 {[%clk
0:02:06.1]} 47. Qe5+ {[%clk 0:01:56.2]} 47... Ke7 {[%clk 0:02:05.1]} 48. Qxh5
{[%clk 0:01:56]} 48... Qb7+ {[%clk 0:02:02.9]} 49. Qf3 {[%clk 0:01:55.9]} 49...
Qb2 {[%clk 0:02:00.3]} 50. g4 {[%clk 0:01:54.5]} 50... Qc2 {[%clk 0:01:58.4]}
51. g5 {[%clk 0:01:53.1]} 51... Qd3 {[%clk 0:01:55.4]} 52. h5 {[%clk 0:01:49.3]}
52... Qh7 {[%clk 0:01:52.2]} 53. Qf6+ {[%clk 0:01:47.3]} 53... Kd6 {[%clk
0:01:50.4]} 54. g6 {[%clk 0:01:37.7]} 1-0

[Event "Live Chess"]
[Site "Chess.com"]
[Date "2023.05.20"]
[Round "-"]
[White "viktorskliarov"]
[Black "ClassyChameleon"]
[Result "1-0"]
[WhiteElo "2650"]
[BlackElo "1074"]
[TimeControl "300"]
[EndTime "11:09:06 PDT"]
[Termination "viktorskliarov won by checkmate"]

1. e4 {[%clk 0:04:56.2]} 1... e5 {[%clk 0:04:58.9]} 2. Nc3 {[%clk 0:04:54.3]}
2... Nc6 {[%clk 0:04:55.7]} 3. Bc4 {[%clk 0:04:52.1]} 3... Bc5 {[%clk
0:04:54.1]} 4. Qg4 {[%clk 0:04:50.5]} 4... d6 {[%clk 0:04:47.7]} 5. Qxg7 {[%clk
0:04:47.9]} 5... Be6 {[%clk 0:04:38.2]} 6. Bxe6 {[%clk 0:04:45.3]} 6... fxe6
{[%clk 0:04:35.9]} 7. Qxh8 {[%clk 0:04:44.5]} 7... Kd7 {[%clk 0:04:34.5]} 8.
Qxh7+ {[%clk 0:04:42]} 8... Kc8 {[%clk 0:04:33.2]} 9. Nf3 {[%clk 0:04:38.2]}
9... Nf6 {[%clk 0:04:31.9]} 10. Qh4 {[%clk 0:04:36.5]} 10... d5 {[%clk
0:04:30.2]} 11. d3 {[%clk 0:04:34.2]} 11... dxe4 {[%clk 0:04:28.4]} 12. Nxe4
{[%clk 0:04:31.7]} 12... Nxe4 {[%clk 0:04:26.6]} 13. Qxd8+ {[%clk 0:04:30.1]}
13... Nxd8 {[%clk 0:04:24.6]} 14. dxe4 {[%clk 0:04:28.7]} 14... b6 {[%clk
0:04:20.4]} 15. Be3 {[%clk 0:04:23]} 15... Bxe3 {[%clk 0:04:16.5]} 16. fxe3
{[%clk 0:04:21.4]} 16... Kb7 {[%clk 0:04:15.8]} 17. Nxe5 {[%clk 0:04:19.5]}
17... Nc6 {[%clk 0:04:12.8]} 18. Nxc6 {[%clk 0:04:17.4]} 18... Kxc6 {[%clk
0:04:12.5]} 19. Ke2 {[%clk 0:04:15.3]} 19... e5 {[%clk 0:04:11.7]} 20. Rad1
{[%clk 0:04:13.4]} 20... Kb5 {[%clk 0:04:07.2]} 21. h4 {[%clk 0:04:11.3]} 21...
c5 {[%clk 0:04:06.4]} 22. h5 {[%clk 0:04:10.8]} 22... c4 {[%clk 0:04:05.5]} 23.
h6 {[%clk 0:04:09.9]} 23... Kb4 {[%clk 0:04:05.2]} 24. h7 {[%clk 0:04:06.1]}
24... Rc8 {[%clk 0:04:04.6]} 25. h8=Q {[%clk 0:04:04.6]} 25... c3 {[%clk
0:04:03.4]} 26. Qxc8 {[%clk 0:04:02.5]} 26... cxb2 {[%clk 0:04:02.4]} 27. Rb1
{[%clk 0:04:01.1]} 27... Ka3 {[%clk 0:04:01.3]} 28. Qc4 {[%clk 0:03:58.5]} 28...
a5 {[%clk 0:03:58.5]} 29. Qb3# {[%clk 0:03:58.4]} 1-0

[Event "Live Chess"]
[Site "Chess.com"]
[Date "2023.05.20"]
[Round "-"]
[White "jennybobby44"]
[Black "HoarseyHorsey"]
[Result "1-0"]
[WhiteElo "1853"]
[BlackElo "1384"]
[TimeControl "300"]
[EndTime "11:09:07 PDT"]
[Termination "jennybobby44 won by resignation"]

1. Nf3 {[%clk 0:04:59.1]} 1... d5 {[%clk 0:04:58.9]} 2. g3 {[%clk 0:04:58.2]}
2... Nc6 {[%clk 0:04:57]} 3. d4 {[%clk 0:04:57.4]} 3... Bf5 {[%clk 0:04:55.9]}
4. Bg2 {[%clk 0:04:56.7]} 4... e6 {[%clk 0:04:55.3]} 5. O-O {[%clk 0:04:56.2]}
5... Bd6 {[%clk 0:04:54.5]} 6. c4 {[%clk 0:04:51.7]} 6... dxc4 {[%clk
0:04:47.6]} 7. Qa4 {[%clk 0:04:49.7]} 7... Qd7 {[%clk 0:04:44.7]} 8. Qxc4 {[%clk
0:04:43.1]} 8... Nf6 {[%clk 0:04:40.5]} 9. Nh4 {[%clk 0:04:09.8]} 9... Be4
{[%clk 0:04:34]} 10. Bxe4 {[%clk 0:03:53.2]} 10... Nxe4 {[%clk 0:04:32.1]} 11.
f3 {[%clk 0:03:51.9]} 11... Nf6 {[%clk 0:04:27.5]} 12. e4 {[%clk 0:03:51.2]}
12... O-O-O {[%clk 0:03:27.3]} 13. e5 {[%clk 0:03:44.1]} 13... Bxe5 {[%clk
0:03:25.5]} 14. dxe5 {[%clk 0:03:40.3]} 14... Nxe5 {[%clk 0:03:24.7]} 15. Qe2
{[%clk 0:03:32.4]} 15... Nc6 {[%clk 0:03:14.7]} 16. Be3 {[%clk 0:03:24.5]} 16...
Nd5 {[%clk 0:03:13.4]} 17. Bf2 {[%clk 0:03:18.7]} 17... g5 {[%clk 0:03:03.9]}
18. Ng2 {[%clk 0:03:17.7]} 18... f5 {[%clk 0:02:57]} 19. Nc3 {[%clk 0:03:16.5]}
19... h5 {[%clk 0:02:36.7]} 20. Nxd5 {[%clk 0:03:15.5]} 20... Qxd5 {[%clk
0:02:35.6]} 21. Rfd1 {[%clk 0:03:09.2]} 21... Qa5 {[%clk 0:02:31.2]} 22. Qxe6+
{[%clk 0:03:06.5]} 22... Kb8 {[%clk 0:02:29.1]} 23. f4 {[%clk 0:02:47.6]} 23...
Rhe8 {[%clk 0:02:19]} 24. Qc4 {[%clk 0:02:38.9]} 24... Rd2 {[%clk 0:01:35.3]}
25. b4 {[%clk 0:02:20.5]} 25... Rxd1+ {[%clk 0:01:25.1]} 26. Rxd1 {[%clk
0:02:19]} 26... Qxb4 {[%clk 0:01:23.6]} 27. Qxb4 {[%clk 0:02:14.1]} 27... Nxb4
{[%clk 0:01:22.8]} 28. fxg5 {[%clk 0:02:07.1]} 28... Nxa2 {[%clk 0:01:17.8]} 29.
g6 {[%clk 0:02:02.4]} 29... b6 {[%clk 0:01:10]} 30. Nf4 {[%clk 0:01:57.2]} 30...
Nc3 {[%clk 0:01:02.2]} 31. Rc1 {[%clk 0:01:54.5]} 31... Ne4 {[%clk 0:00:59.7]}
32. Nxh5 {[%clk 0:01:49.5]} 32... Nxf2 {[%clk 0:00:57.2]} 33. Kxf2 {[%clk
0:01:47.7]} 33... Rg8 {[%clk 0:00:54.5]} 34. g7 {[%clk 0:01:46.4]} 34... Kb7
{[%clk 0:00:52]} 35. Re1 {[%clk 0:01:42.4]} 35... a5 {[%clk 0:00:51.2]} 36. Re7
{[%clk 0:01:40.8]} 36... a4 {[%clk 0:00:49.9]} 37. Nf6 {[%clk 0:01:39.4]} 37...
Rb8 {[%clk 0:00:46.6]} 38. Ne8 {[%clk 0:01:35.3]} 38... a3 {[%clk 0:00:42.8]}
39. g8=Q {[%clk 0:01:33.9]} 39... b5 {[%clk 0:00:40.9]} 1-0